bitfinex/quotes_SOLUSD_20260223
["timestamp","ask_amount","ask_price","bid_price","bid_amount"]
[1771876904150,2.94488231,78.465,78.431,3.04461221]
[1771876904350,12.74388612,78.469,78.441,3.04461221]
[1771876904738,15.68876843,78.469,78.441,3.04461221]
[1771876905149,12.74388612,78.469,78.451,3.04461221]
[1771876905448,2.94488231,78.485,78.461,3.04461221]
[1771876905635,12.74031417,78.491,78.471,3.04461221]
[1771876905834,15.68519648,78.491,78.471,3.04461221]
[1771876906053,0.1,78.5,78.452,44.6132667]
[1771876906054,0.1,78.5,78.481,3.04461221]
[1771876906242,12.73901578,78.499,78.481,3.04461221]
[1771876908856,2.96699958,78.498,78.481,3.04461221]
[1771876909156,2.96699958,78.498,78.466,2.91313869]
[1771876909336,12.73901578,78.499,78.466,2.91313869]
[1771876909337,2.96699958,78.489,78.466,2.91313869]
[1771876909735,2.96699958,78.489,78.468,2.91313869]
[1771876909952,2.96699958,78.494,78.468,2.91313869]
[1771876912159,2.96699958,78.494,78.47,2.91313869]
[1771876912464,2.70728454,78.494,78.47,2.91313869]
[1771876913957,5.59876159,78.5,78.471,2.91313869]
[1771876914463,2.96699958,78.499,78.472,2.91313869]
[1771876915340,0.1,78.5,78.472,2.91313869]
[1771876915741,3.06699958,78.5,78.472,2.91313869]
[1771876916042,2.96699958,78.487,78.461,2.91313869]
[1771876916454,2.96699958,78.487,78.463,2.91313869]
[1771876916959,12.74080114,78.488,78.463,2.91313869]
[1771876917341,2.96699958,78.487,78.463,2.91313869]
[1771876918155,12.7411258,78.486,78.463,2.91313869]
[1771876918358,15.70812538,78.486,78.463,2.91313869]
[1771876919062,2.96699958,78.469,78.445,2.91313869]
[1771876919562,2.96699958,78.479,78.451,2.91313869]
[1771876920863,2.96699958,78.477,78.453,2.91313869]
[1771876922250,2.96699958,78.459,78.439,12.74872222]
[1771876922558,2.96699958,78.459,78.4,5.49876159]
[1771876922559,2.96699958,78.449,78.422,2.91313869]
[1771876922759,2.96699958,78.439,78.417,15.66537874]
[1771876922966,2.96699958,78.439,78.418,2.91313869]
[1771876925168,2.96699958,78.437,78.418,2.91313869]
[1771876925387,2.96699958,78.437,78.412,2.91313869]
[1771876925567,31.86956497,78.445,78.401,12.75493935]
[1771876925568,2.96699958,78.471,78.406,2.91313869]
[1771876925776,2.96699958,78.459,78.421,2.91313869]
[1771876926158,2.96699958,78.465,78.433,2.91313869]
[1771876926365,5.49876159,78.47,78.441,2.91313869]
[1771876926553,2.96699958,78.469,78.441,2.91313869]
[1771876929270,2.96699958,78.474,78.442,2.91313869]
[1771876929577,2.46699958,78.474,78.443,2.91313869]
[1771876932257,2.96699958,78.48,78.451,2.91313869]
[1771876932458,2.96699958,78.479,78.451,2.91313869]
[1771876933259,2.96699958,78.485,78.451,2.91313869]
[1771876933781,5.49876159,78.48,78.451,2.91313869]
[1771876934077,2.96699958,78.479,78.451,2.91313869]
[1771876934580,2.96699958,78.477,78.451,2.91313869]
[1771876935092,2.96699958,78.477,78.452,2.91313869]
[1771876937077,12.74274937,78.476,78.452,2.91313869]
[1771876937382,2.96699958,78.469,78.445,2.91313869]
[1771876938275,2.91765852,78.475,78.445,2.91313869]
[1771876939878,2.91765852,78.475,78.447,2.86955013]
[1771876940069,0.2,78.477,78.446,12.74762256]
[1771876940070,2.91765852,78.469,78.446,12.74762256]
[1771876940259,2.91765852,78.469,78.447,2.91777818]
[1771876940679,12.74307413,78.474,78.432,2.91777818]
[1771876940680,2.88929765,78.459,78.432,2.91777818]
[1771876941767,3.08929765,78.457,78.432,2.91777818]
[1771876943685,0.2,78.457,78.434,2.91777818]
[1771876943870,12.94591326,78.457,78.434,2.91777818]
[1771876944682,12.94591326,78.457,78.401,51.01958103]
[1771876944683,2.88929765,78.439,78.401,2.91777818]
[1771876944882,5.49876159,78.43,78.401,2.91777818]
[1771876945271,5.50393473,78.43,78.401,2.91777818]
[1771876946476,2.88929765,78.433,78.403,2.91777818]
[1771876948482,12.749898,78.432,78.405,2.91777818]
[1771876948883,2.88929765,78.431,78.405,2.91777818]
[1771876949288,5.50393473,78.43,78.405,2.91777818]
[1771876949491,8.39323238,78.43,78.405,2.91777818]
[1771876949682,2.88929765,78.429,78.405,2.91777818]
[1771876950796,2.88929765,78.429,78.407,2.91777818]
[1771876954297,2.88929765,78.429,78.409,2.91777818]
[1771876954998,2.88929765,78.419,78.401,12.75480706]
[1771876955795,2.88929765,78.419,78.4,12.75510204]
[1771876956000,3.08929765,78.419,78.4,12.75510204]
[1771876956308,3.08929765,78.419,78.38,3.01777818]
[1771876956309,2.88929765,78.407,78.38,3.01777818]
[1771876956505,5.50393473,78.39,78.38,0.1]
[1771876957007,2.88929765,78.397,78.38,0.1]
[1771876957806,5.50393473,78.39,78.38,0.1]
[1771876957980,2.88929765,78.392,78.38,0.1]
[1771876958410,2.88929765,78.389,78.366,12.76062497]
[1771876958982,2.88929765,78.389,78.366,15.67840315]
[1771876959484,12.75656644,78.391,78.299,57.46]
[1771876959485,2.88929765,78.379,78.346,2.91777818]
[1771876959692,5.50393473,78.36,78.346,2.91777818]
[1771876959893,2.88929765,78.369,78.346,2.91777818]
[1771876960503,5.50393473,78.36,78.339,2.91777818]
[1771876960684,5.50393473,78.36,78.33,0.1]
[1771876960685,2.88929765,78.349,78.33,0.1]
[1771876961997,5.50393473,78.34,78.33,0.1]
[1771876962195,2.88929765,78.349,78.33,0.1]
[1771876962591,2.88929765,78.339,78.32,0.1]
[1771876965215,2.88929765,78.329,78.31,0.2]
[1771876965682,2.88929765,78.329,78.31,3.11777818]
[1771876966494,5.50393473,78.32,78.31,0.2]
[1771876966704,2.88929765,78.318,78.292,2.91777818]
[1771876966910,2.88929765,78.318,78.286,2.91777818]
[1771876968310,12.76829377,78.319,78.286,2.91777818]
[1771876968491,15.54052975,78.319,78.286,2.91777818]
[1771876968701,2.77223598,78.318,78.288,2.80312976]
[1771876970411,12.76861983,78.317,78.29,2.80312976]
[1771876971306,0.2,78.308,78.29,2.80312976]
[1771876971608,0.2,78.318,78.291,2.80312976]
[1771876972286,0.2,78.318,78.292,12.77269708]
[1771876972490,0.2,78.318,78.293,2.80312976]
[1771876973989,5.50393473,78.31,78.293,2.80312976]
[1771876974191,2.77223598,78.309,78.287,15.57658175]
[1771876974408,0.2,78.318,78.288,2.80312976]
[1771876974797,12.76861983,78.317,78.288,2.80312976]
[1771876974998,5.50393473,78.31,78.288,2.80312976]
[1771876975508,0.41383989,78.3,78.288,2.80312976]
[1771876975811,5.50393473,78.31,78.281,2.80312976]
[1771876977414,5.50393473,78.31,78.28,5.60393473]
[1771876977415,5.50393473,78.33,78.291,3.0874529]
[1771876977608,6.67434442,78.347,78.291,3.0874529]
[1771876977609,2.77223598,78.341,78.301,2.80312976]
[1771876977810,2.77223598,78.341,78.311,2.80312976]
[1771876978310,5.50393473,78.34,78.311,2.80312976]
[1771876979617,12.76503401,78.339,78.313,2.80312976]
[1771876980118,2.77223598,78.338,78.313,2.80312976]
[1771876981016,12.76503401,78.339,78.293,2.80312976]
[1771876981017,2.77223598,78.329,78.293,2.80312976]
[1771876981315,44.67761905,78.339,78.293,2.80312976]
[1771876981316,2.77223598,78.319,78.293,2.80312976]
[1771876981710,5.50393473,78.3,78.282,2.80312976]
[1771876982021,5.50393473,78.3,78.28,0.1]
[1771876982321,5.50393473,78.3,78.28,2.90312976]
[1771876982525,5.50393473,78.3,78.28,15.67773587]
[1771876982701,5.50393473,78.32,78.281,2.80312976]
[1771876983016,2.77223598,78.321,78.291,2.80312976]
[1771876983215,5.50393473,78.33,78.291,2.80312976]
[1771876983216,2.77223598,78.328,78.291,2.80312976]
[1771876984314,18.27054152,78.33,78.292,44.70443978]
[1771876984520,18.27054152,78.33,78.293,2.80312976]
[1771876985204,3.69383402,78.347,78.301,2.80312976]
[1771876985205,2.77223598,78.336,78.301,2.80312976]
[1771876987214,2.77223598,78.336,78.303,2.80312976]
[1771876987419,2.77223598,78.335,78.303,2.80312976]
[1771876987797,2.77223598,78.319,78.297,15.5749014]
[1771876988416,5.50393473,78.32,78.298,2.80312976]
[1771876989720,2.77223598,78.325,78.3,2.80312976]
[1771876990222,2.77223598,78.332,78.301,2.80312976]
[1771876990419,12.76557305,78.336,78.301,2.80312976]
[1771876991220,2.77223598,78.338,78.301,2.80312976]
[1771876991717,12.76535991,78.337,78.303,2.80312976]
[1771876991911,2.77223598,78.336,78.303,2.80312976]
[1771876992300,12.76535991,78.337,78.296,2.80312976]
[1771876992301,5.50393473,78.32,78.296,2.80312976]
[1771876992501,8.27617071,78.32,78.296,2.80312976]
[1771876993106,2.77223598,78.329,78.296,2.80312976]
[1771876993628,5.50393473,78.32,78.296,2.80312976]
[1771876994208,5.50393473,78.32,78.297,12.77188142]
[1771876994432,5.50393473,78.32,78.298,2.80312976]
[1771876995606,18.27207453,78.32,78.298,2.80312976]
[1771876995805,8.27617071,78.32,78.298,2.80312976]
[1771876996024,5.50393473,78.32,78.298,2.80312976]
[1771876996526,5.50393473,78.32,78.299,12.77155519]
[1771876996706,8.27617071,78.32,78.299,12.77155519]
[1771876997223,2.77223598,78.319,78.299,12.77155519]
[1771876997934,15.54052975,78.319,78.298,2.80312976]
[1771876998124,2.96372298,78.309,78.284,3.00580054]
[1771876998429,5.50393473,78.3,78.285,12.77383917]
[1771876998630,5.50393473,78.3,78.284,3.00580054]
[1771876999208,5.50393473,78.3,78.28,0.1]
[1771876999407,2.96372298,78.307,78.271,31.94030303]
[1771876999408,5.50393473,78.29,78.272,12.77593465]
[1771877000216,5.50393473,78.29,78.271,3.00580054]
[1771877000415,2.7739029,78.289,78.27,0.1]
[1771877001520,2.5739029,78.289,78.27,0.1]
[1771877002421,2.3739029,78.289,78.27,0.1]
[1771877003333,2.1739029,78.289,78.27,0.1]
[1771877005416,12.77334968,78.288,78.27,0.1]
[1771877005618,2.7739029,78.287,78.27,0.1]
[1771877006635,5.52413202,78.29,78.27,0.1]
[1771877007133,3.69383402,78.315,78.27,0.1]
[1771877007134,2.7739029,78.337,78.281,2.74175571]
[1771877007322,2.7739029,78.319,78.281,2.74175571]
[1771877007525,12.7684568,78.318,78.282,12.7743287]
[1771877007833,2.7739029,78.317,78.283,2.74175571]
[1771877012637,31.91706614,78.329,78.285,2.74175571]
[1771877012638,2.7739029,78.315,78.285,2.74175571]
[1771877014921,2.7739029,78.315,78.286,12.773676]
[1771877015234,2.7739029,78.315,78.287,2.74175571]
[1771877015436,2.7739029,78.329,78.291,2.74175571]
[1771877015743,2.7739029,78.335,78.311,2.74175571]
[1771877016333,2.7739029,78.356,78.321,2.74175571]
[1771877017143,2.7739029,78.356,78.323,2.74175571]
[1771877017944,2.7739029,78.349,78.323,2.74175571]
[1771877019552,2.7739029,78.349,78.325,2.74175571]
[1771877020544,2.7739029,78.349,78.324,12.76747867]
[1771877020545,2.7739029,78.349,78.326,12.76715266]
[1771877020747,2.7739029,78.349,78.327,2.74175571]
[1771877022637,2.7739029,78.349,78.326,12.76715266]
[1771877022843,2.7739029,78.349,78.312,0.28432314]
[1771877022844,2.7739029,78.339,78.309,2.74175571]
[1771877023352,2.7739029,78.348,78.311,2.74175571]
[1771877025449,2.7739029,78.346,78.313,2.74175571]
[1771877026256,2.7739029,78.339,78.308,12.77004501]
[1771877026559,2.7739029,78.329,78.297,2.74175571]
[1771877027950,2.90114864,78.327,78.298,12.7717183]
[1771877028254,2.90114864,78.327,78.298,15.69100101]
[1771877028753,2.90114864,78.327,78.3,5.52413202]
[1771877030231,2.90114864,78.327,78.31,5.52413202]
[1771877030957,2.90114864,78.327,78.301,12.77122897]
[1771877030958,2.90114864,78.327,78.301,15.69051168]
[1771877031549,2.90114864,78.325,78.301,15.69051168]
[1771877031852,2.90114864,78.325,78.302,2.91928271]
[1771877032363,2.90114864,78.323,78.295,2.91928271]
[1771877032538,2.90114864,78.323,78.294,12.77222473]
[1771877032539,2.90114864,78.323,78.301,2.91928271]
[1771877032859,2.90114864,78.335,78.311,2.91928271]
[1771877033739,2.90114864,78.335,78.32,5.52413202]
[1771877033940,2.90114864,78.335,78.312,2.91928271]
[1771877035467,2.90114864,78.335,78.313,12.76927202]
[1771877036157,2.90114864,78.333,78.313,12.76927202]
[1771877040557,15.66308743,78.358,78.321,2.91928271]
[1771877040750,2.90114864,78.357,78.336,2.91928271]
[1771877041659,2.90114864,78.357,78.331,2.91928271]
[1771877043976,2.90114864,78.378,78.35,5.52413202]
[1771877044176,2.90114864,78.379,78.36,5.52413202]
[1771877044463,2.90114864,78.378,78.36,5.52413202]
[1771877045259,2.90114864,78.378,78.34,8.44341473]
[1771877050563,2.90114864,78.369,78.326,2.91928271]
[1771877050770,2.90114864,78.369,78.35,5.52413202]
[1771877051368,2.90114864,78.369,78.351,2.91928271]
[1771877051562,2.90114864,78.369,78.323,44.6867459]
[1771877051563,2.90114864,78.389,78.361,2.91928271]
[1771877051772,0.2,78.4,78.38,8.44341473]
[1771877051959,15.85630611,78.4,78.38,8.44341473]
[1771877052161,2.90114864,78.399,78.38,8.44341473]
[1771877052554,2.90114864,78.397,78.38,5.52413202]
[1771877052855,2.90114864,78.397,78.373,12.75949625]
[1771877055970,2.90114864,78.397,78.375,12.75917065]
[1771877056554,2.90114864,78.395,78.371,12.75982187]
[1771877058656,2.90114864,78.395,78.372,3.01927262]
[1771877059672,2.7608398,78.393,78.372,3.01927262]
[1771877060960,2.7608398,78.393,78.374,3.05262774]
[1771877061474,2.7608398,78.393,78.38,5.52413202]
[1771877061970,0.2,78.4,78.381,3.05262774]
[1771877061971,1e-08,78.4,78.381,3.05262774]
[1771877062172,1e-08,78.4,78.373,44.65823688]
[1771877062173,0.2,78.41,78.39,5.52413202]
[1771877062372,2.90100978,78.422,78.373,44.65823688]
[1771877062373,2.90100978,78.422,78.401,3.05262774]
[1771877062669,167.23412357,78.451,78.373,95.6962219]
[1771877062670,2.90100978,78.419,78.39,5.52413202]
[1771877062851,2.90100978,78.419,78.39,8.57675976]
[1771877063053,2.90100978,78.418,78.391,15.80919418]
[1771877063271,2.90100978,78.418,78.392,3.05262774]
[1771877063478,2.90100978,78.417,78.392,3.05262774]
[1771877063975,2.90100978,78.417,78.391,12.75656644]
[1771877063976,0.2,78.42,78.4,8.57675976]
[1771877064175,2.90100978,78.419,78.392,3.05262774]
[1771877065071,2.90100978,78.419,78.4,5.52413202]
[1771877065272,0.2,78.42,78.41,5.52413202]
[1771877065459,0.2,78.42,78.409,3.05262774]
[1771877065770,0.2,78.42,78.4,5.52413202]
[1771877066078,0.2,78.42,78.401,3.05262774]
[1771877066570,2.90100978,78.426,78.393,44.64684346]
[1771877066571,2.90100978,78.426,78.41,5.52413202]
[1771877067362,2.90100978,78.426,78.41,18.25635858]
[1771877067962,2.90100978,78.426,78.41,12.75347532]
[1771877070177,2.90100978,78.426,78.41,53.19267462]
[1771877070687,2.90100978,78.432,78.411,3.05262774]
[1771877073177,2.90100978,78.447,78.421,3.05262774]
[1771877073366,2.90100978,78.447,78.43,5.50288326]
[1771877073567,167.8,78.486,78.41,12.75347532]
[1771877073568,2.90100978,78.479,78.441,3.05262774]
[1771877073771,6.66370016,78.459,78.441,3.05262774]
[1771877073965,2.90100978,78.46,78.41,44.63716362]
[1771877073966,2.90100978,78.474,78.451,3.05262774]
[1771877075678,2.90100978,78.472,78.451,3.05262774]
[1771877076487,0.2,78.48,78.453,3.05262774]
[1771877076786,0.2,78.48,78.452,12.74664763]
[1771877076787,0.2,78.48,78.461,3.05262774]
[1771877077281,5.60288326,78.5,78.452,12.74664763]
[1771877077282,0.1,78.5,78.47,5.50288326]
[1771877077487,0.1,78.5,78.452,44.6132667]
[1771877077488,0.1,78.5,78.481,3.05262774]
[1771877077687,0.2,78.52,78.492,3.05262774]
[1771877077875,0.2,78.52,78.491,12.7402141]
[1771877077876,0.2,78.52,78.501,3.05262774]
[1771877078259,5.70288326,78.52,78.477,3.05262774]
[1771877078468,12.73577095,78.519,78.481,3.05262774]
[1771877078963,12.73577095,78.519,78.49,5.50288326]
[1771877079690,2.90100978,78.518,78.49,5.50288326]
[1771877080382,2.90100978,78.519,78.491,3.05262774]
[1771877081282,0.2,78.52,78.5,5.50288326]
[1771877081466,0.2,78.52,78.5,8.555511]
[1771877081668,0.2,78.52,78.501,3.05262774]
[1771877082577,0.2,78.52,78.502,3.05262774]
[1771877082788,0.2,78.52,78.501,12.73858156]
[1771877082789,0.2,78.53,78.513,3.05262774]
[1771877083378,0.2,78.53,78.51,5.50288326]
[1771877083586,0.2,78.53,78.51,8.555511]
[1771877083761,0.2,78.53,78.511,3.05262774]
[1771877083966,0.2,78.53,78.52,8.555511]
[1771877084377,0.2,78.53,78.511,1.05491072]
[1771877084378,15.63515894,78.529,78.511,1.05491072]
[1771877084585,2.90100978,78.528,78.511,1.05491072]
[1771877086168,2.90100978,78.528,78.503,12.73826165]
[1771877086487,0.2,78.53,78.51,8.555511]
[1771877087074,0.2,78.53,78.511,3.05262774]
[1771877087480,3.10100978,78.53,78.511,3.05262774]
[1771877087680,3.10100978,78.53,78.503,12.73826165]
[1771877087889,3.10100978,78.53,78.505,2.97492724]
[1771877088285,2.78444364,78.529,78.505,2.97492724]
[1771877088678,2.78444364,78.529,78.507,2.97492724]
[1771877091491,2.78444364,78.527,78.507,2.97492724]
[1771877095390,12.73414916,78.529,78.501,2.97492724]
[1771877095590,2.78444364,78.528,78.501,2.97492724]
[1771877098030,1e-08,78.53,78.52,5.50288326]
[1771877098172,0.2,78.54,78.522,2.97492724]
[1771877098506,2.78444364,78.551,78.52,5.50288326]
[1771877098507,0.1,78.56,78.531,2.97492724]
[1771877098791,2.78444364,78.558,78.533,2.97492724]
[1771877098978,2.78444364,78.558,78.526,2.97492724]
[1771877099177,2.78444364,78.558,78.531,2.97492724]
[1771877099782,0.1,78.56,78.531,2.97492724]
[1771877099985,0.1,78.56,78.532,12.73366271]
[1771877100178,0.1,78.56,78.533,2.97492724]
[1771877101190,8.3873269,78.56,78.533,2.97492724]
[1771877101494,2.78444364,78.559,78.533,2.97492724]
[1771877101796,2.78444364,78.549,78.522,2.97492724]
[1771877101997,2.78444364,78.549,78.525,2.97492724]
[1771877102181,5.50288326,78.55,78.525,2.97492724]
[1771877102182,2.78444364,78.547,78.525,2.97492724]
[1771877102494,2.78444364,78.547,78.524,12.73483995]
[1771877102699,2.78444364,78.547,78.486,54.65806852]
[1771877102700,2.78444364,78.529,78.505,2.97492724]
[1771877102878,5.60288326,78.56,78.51,5.50288326]
[1771877102879,2.78444364,78.539,78.51,5.50288326]
[1771877103079,2.78444364,78.553,78.521,2.97492724]
[1771877104200,2.78444364,78.553,78.486,3.69383402]
[1771877104201,8.2873269,78.54,78.517,2.97492724]
[1771877104501,2.78444364,78.54,78.517,2.97492724]
[1771877104701,5.50288326,78.55,78.517,2.97492724]
[1771877104702,2.78444364,78.546,78.517,2.97492724]
[1771877106803,2.78444364,78.544,78.517,2.97492724]
[1771877107502,5.50288326,78.54,78.517,2.97492724]
[1771877107709,8.2873269,78.54,78.517,2.97492724]
[1771877108595,2.78444364,78.529,78.491,2.97492724]
[1771877108792,5.50288326,78.52,78.491,2.97492724]
[1771877109703,2.78444364,78.527,78.491,2.97492724]
[1771877110208,12.73431132,78.528,78.484,2.97492724]
[1771877110209,2.78444364,78.509,78.484,2.97492724]
[1771877110406,12.73431132,78.528,78.465,31.8612369]
[1771877110407,2.78444364,78.499,78.465,31.8612369]
[1771877110905,5.50288326,78.49,78.461,12.7451855]
[1771877111109,2.78444364,78.489,78.461,12.7451855]
[1771877111291,2.78444364,78.489,78.422,51.00546647]
[1771877111292,8.2873269,78.48,78.452,12.74662263]
[1771877111490,2.78444364,78.479,78.452,12.74662263]
[1771877111686,2.78444364,78.486,78.452,12.74662263]
[1771877111901,5.50288326,78.49,78.452,12.74662263]
[1771877112099,2.78444364,78.489,78.452,12.74662263]
[1771877112409,2.78444364,78.489,78.453,2.97492724]
[1771877112905,15.52524478,78.488,78.455,2.97492724]
[1771877113311,2.78444364,78.487,78.455,2.97492724]
[1771877115094,2.78444364,78.485,78.457,2.97492724]
[1771877116993,12.7411258,78.486,78.443,15.72299204]
[1771877116994,2.78444364,78.469,78.443,15.72299204]
[1771877117194,5.50288326,78.46,78.443,12.7480648]
[1771877117995,2.85630755,78.459,78.434,12.74946557]
[1771877118210,2.85630755,78.459,78.435,2.98555258]
[1771877119104,2.85630755,78.449,78.43,0.2]
[1771877119309,2.85630755,78.439,78.418,12.75210196]
[1771877120018,2.85630755,78.439,78.416,2.98555258]
[1771877120534,2.85630755,78.439,78.416,15.73795711]
[1771877120896,2.85630755,78.439,78.416,12.75240453]
[1771877121195,3.0870549,78.429,78.401,15.60517694]
[1771877121393,3.0870549,78.429,78.39,5.50288326]
[1771877121394,3.0870549,78.429,78.396,12.7557159]
[1771877121595,3.0870549,78.477,78.401,2.85023759]
[1771877121815,3.0870549,78.449,78.411,2.85023759]
[1771877122215,5.50288326,78.44,78.411,2.85023759]
[1771877122604,5.50288326,78.45,78.411,2.85023759]
[1771877122806,3.0870549,78.449,78.411,2.85023759]
[1771877123318,5.50288326,78.45,78.413,2.85023759]
[1771877123319,3.0870549,78.437,78.413,2.85023759]
[1771877124621,3.0870549,78.437,78.414,12.75282475]
[1771877127305,3.0870549,78.429,78.405,15.60440666]
[1771877127505,3.0870549,78.429,78.406,2.85023759]
[1771877127925,3.0870549,78.436,78.406,2.85023759]
[1771877128813,3.0870549,78.436,78.408,2.85023759]
[1771877129619,15.83646523,78.435,78.408,2.85023759]
[1771877130022,3.0870549,78.434,78.408,2.85023759]
[1771877130516,5.50311767,78.44,78.408,2.85023759]
[1771877130517,3.0870549,78.429,78.408,2.85023759]
[1771877130722,3.0870549,78.435,78.408,2.85023759]
[1771877132124,3.0870549,78.429,78.408,2.85023759]
[1771877132519,3.0870549,78.429,78.393,31.89032126]
[1771877132520,3.0870549,78.419,78.394,12.75607827]
[1771877133109,3.0870549,78.419,78.394,15.60631586]
[1771877136328,3.0870549,78.419,78.395,2.85023759]
[1771877136625,3.0870549,78.399,78.38,3.05023759]
[1771877136930,5.50311767,78.39,78.38,0.2]
[1771877137134,5.50311767,78.39,78.369,2.85023759]
[1771877137313,3.0870549,78.389,78.369,2.85023759]
[1771877137633,3.0870549,78.389,78.361,12.76145021]
[1771877137846,3.0870549,78.389,78.362,2.85023759]
[1771877138322,5.50311767,78.38,78.362,2.85023759]
[1771877138523,3.0870549,78.387,78.363,15.6113621]
[1771877138831,3.0870549,78.387,78.363,2.85023759]
[1771877139010,5.50311767,78.38,78.363,2.85023759]
[1771877139332,3.0870549,78.387,78.363,2.85023759]
[1771877139528,5.50311767,78.38,78.363,2.85023759]
[1771877139731,5.50311767,78.38,78.359,2.85023759]
[1771877140434,3.0870549,78.381,78.36,12.76161306]
[1771877140639,3.0870549,78.381,78.36,15.61185065]
[1771877140829,5.50311767,78.38,78.36,2.85023759]
[1771877141016,3.0870549,78.381,78.36,2.85023759]
[1771877142530,3.0870549,78.381,78.361,15.6116878]
[1771877142714,3.0870549,78.381,78.362,2.85023759]
[1771877146017,15.84525852,78.381,78.355,2.85023759]
[1771877146229,3.0870549,78.369,78.338,2.85023759]
[1771877146532,0.49276663,78.368,78.342,2.85023759]
[1771877147628,0.49276663,78.368,78.344,2.85023759]
[1771877148354,5.50311767,78.35,78.333,12.76594479]
[1771877148639,5.50311767,78.35,78.294,51.08903434]
[1771877148640,2.96078784,78.349,78.324,3.03699004]
[1771877149041,2.96078784,78.359,78.324,3.03699004]
[1771877149217,2.96078784,78.365,78.324,3.03699004]
[1771877149420,2.96078784,78.365,78.313,44.69245207]
[1771877149421,2.96078784,78.369,78.331,3.03699004]
[1771877150333,2.96078784,78.379,78.341,3.03699004]
[1771877150531,2.96078784,78.379,78.351,3.03699004]
[1771877151441,18.26162793,78.38,78.34,3.03699004]
[1771877151442,2.96078784,78.369,78.34,3.03699004]
[1771877152345,12.76031033,78.368,78.342,3.03699004]
[1771877153222,15.72109817,78.368,78.342,3.03699004]
[1771877153437,2.96078784,78.367,78.342,3.03699004]
[1771877153644,8.46390551,78.36,78.335,3.03699004]
[1771877153840,2.96078784,78.359,78.335,3.03699004]
[1771877154230,2.96078784,78.365,78.335,3.03699004]
[1771877154722,2.96078784,78.364,78.337,3.03699004]
[1771877155844,2.96078784,78.363,78.337,3.03699004]
[1771877156139,2.96078784,78.378,78.341,3.03699004]
[1771877156332,2.96078784,78.378,78.351,3.03699004]
[1771877156836,2.96078784,78.376,78.352,15.79990611]
[1771877157041,2.96078784,78.376,78.352,12.76291607]
[1771877158846,2.96078784,78.376,78.353,3.03699004]
[1771877159227,2.96078784,78.376,78.354,12.76259029]
[1771877160132,2.96078784,78.382,78.354,47.70605606]
[1771877161024,2.96078784,78.389,78.36,5.50311767]
[1771877161342,2.96078784,78.395,78.361,44.66507573]
[1771877162046,2.96078784,78.395,78.362,3.03699004]
[1771877162246,2.96078784,78.407,78.371,3.03699004]
[1771877163349,2.96078784,78.413,78.383,3.03699004]
[1771877163856,2.96078784,78.422,78.391,3.03699004]
[1771877164746,2.96078784,78.419,78.391,3.03699004]
[1771877165341,2.96078784,78.419,78.393,3.03699004]
[1771877165542,2.96078784,78.434,78.401,3.03699004]
[1771877166127,2.96078784,78.434,78.411,3.03699004]
[1771877166543,2.96078784,78.448,78.411,3.03699004]
[1771877168239,2.96078784,78.447,78.413,3.03699004]
[1771877168453,2.96078784,78.439,78.413,3.03699004]
[1771877171247,2.96078784,78.439,78.414,12.75282475]
[1771877171439,2.96078784,78.439,78.415,3.03699004]
[1771877172443,15.70819773,78.448,78.421,3.03699004]
[1771877172953,2.96078784,78.447,78.421,3.03699004]
[1771877176454,2.96078784,78.447,78.422,12.7515238]
[1771877176755,12.74762256,78.446,78.422,12.7515238]
[1771877176957,2.96078784,78.445,78.402,3.03699004]
[1771877177261,2.96078784,78.429,78.402,3.03699004]
[1771877177461,2.96078784,78.455,78.421,3.03699004]
[1771877177839,2.89268385,78.449,78.41,15.37888792]
[1771877178160,2.89268385,78.449,78.411,3.09767708]
[1771877178659,12.74729757,78.448,78.421,3.09767708]
[1771877178846,2.89268385,78.447,78.421,3.09767708]
[1771877180570,2.89268385,78.447,78.422,12.7515238]
[1771877180939,12.28121084,78.45,78.422,12.7515238]
[1771877180940,2.93143158,78.46,78.431,2.85452363]
[1771877181137,2.93143158,78.449,78.422,12.7515238]
[1771877181954,2.93143158,78.449,78.417,2.85452363]
[1771877182255,2.93143158,78.439,78.417,2.85452363]
[1771877182838,2.93143158,78.437,78.413,12.7529369]
[1771877187272,2.93143158,78.435,78.408,2.85452363]
[1771877188944,2.93143158,78.435,78.4,37.39091547]
[1771877189151,2.93143158,78.427,78.391,2.85452363]
[1771877189346,2.93143158,78.427,78.393,2.85452363]
[1771877189560,2.93143158,78.427,78.401,2.85452363]
[1771877190360,2.93143158,78.439,78.411,2.85452363]
[1771877190545,2.93143158,78.438,78.411,2.85452363]
[1771877191249,2.93143158,78.438,78.412,12.75315002]
[1771877191453,2.93143158,78.438,78.413,2.85452363]
[1771877191637,2.93143158,78.436,78.413,2.85452363]
[1771877194360,2.93143158,78.442,78.415,2.85452363]
[1771877194771,12.74551039,78.459,78.421,2.85452363]
[1771877196257,5.50262295,78.45,78.423,2.85452363]
[1771877196842,2.93143158,78.451,78.423,2.85452363]
[1771877199865,2.93143158,78.451,78.424,12.75119861]
[1771877200048,2.93143158,78.451,78.425,2.85452363]
[1771877201373,5.50262295,78.45,78.414,2.85452363]